lending/lending_fUSD_20260328
["ID","MTS","AMOUNT","RATE_DAILY","PERIOD"]
[418985929,1774712350893,-1785.07254878,0.00011841,2]
[418985930,1774712350917,-566.63,0.00011868,2]
[418985931,1774712350939,-1852.42,0.00011869,2]
[418985932,1774712350961,-276.0,0.0001191,2]
[418985933,1774712350987,-2331.08,0.00011912,2]
[418985934,1774712351010,-166.66,0.00012012,2]
[418985935,1774712351035,-730.0,0.00012021,2]
[418985936,1774712351057,-294.78,0.00012055,2]
[418985937,1774712351081,-1200.0,0.00012157,2]
[418985938,1774712351101,-10095.84,0.00012263,2]
[418985939,1774712351126,-267.49,0.0001235,2]
[418985940,1774712351150,-2800.0,0.0001241,2]
[418985941,1774712351174,-737.68,0.00012419,2]
[418985942,1774712351196,-150.0,0.00012435,2]
[418985943,1774712351218,-1000.0,0.00012436,2]
[418985944,1774712351239,-8454.96,0.00012436,2]
[418985945,1774712351263,-517.73,0.00012436,2]
[418985946,1774712351284,-5686.33,0.00012436,2]
[418985947,1774712351306,-299.99,0.00012436,2]
[418985948,1774712351330,-9999.99,0.00012436,2]
[418985949,1774712351352,-1044.0,0.00012436,2]
[418985950,1774712351375,-9999.99,0.00012436,2]
[418985951,1774712351398,-150.99,0.00012436,2]
[418985952,1774712351580,-9999.99,0.00012436,2]
[418985953,1774712351604,-150.99,0.00012436,2]
[418985954,1774712351627,-499.99,0.00012436,2]
[418985955,1774712351649,-1159.87,0.00012436,2]
[418985956,1774712351671,-1842.25,0.00012436,2]
[418985957,1774712351693,-999.99,0.00012436,2]
[418985958,1774712351717,-9999.99,0.00012436,2]
[418985959,1774712351740,-2267.08,0.00012436,2]
[418985960,1774712351763,-1026.21607008,0.00012484,2]
[418985961,1774712351788,-325.46927237,0.000125,2]
[418985962,1774712351815,-550.0,0.00012544,2]
[418985963,1774712351839,-10338.27838405,0.00012547,2]
[418985964,1774712351862,-1103.7299612,0.00012547,2]
[418985965,1774712351888,-2869.47952815,0.00012573,2]
[418985966,1774712351911,-1793.42470505,0.00012573,2]
[418985967,1774712351934,-5000.0,0.00012584,2]
[418985968,1774712351957,-250.0,0.00012584,2]
[418985969,1774712351979,-2345.73510234,0.00012584,2]
[418985970,1774712352002,-394.6457528,0.00012605,2]
[418985971,1774712352023,-500.0,0.00012618,2]
[418985972,1774712352045,-500.0,0.00012618,2]
[418985973,1774712352067,-338.03990461,0.00012618,2]
[418985974,1774712352090,-500.0,0.00012618,2]
[418985975,1774712352111,-500.0,0.00012618,2]
[418985976,1774712352140,-768.25720079,0.00012618,2]
[418985977,1774712352163,-500.0,0.00012618,2]
[418985978,1774712352185,-500.0,0.00012618,2]
[418985979,1774712352208,-500.0,0.00012618,2]
[418985980,1774712352231,-193.54401913,0.00012618,2]
[418985981,1774712352253,-500.0,0.00012618,2]
[418985982,1774712352283,-768.25720079,0.00012618,2]
[418985983,1774712352305,-180.90772762,0.00012618,2]
[418985984,1774712352327,-153.63603755,0.00012618,2]
[418985985,1774712352349,-500.0,0.00012618,2]
[418985986,1774712352378,-768.25720079,0.00012618,2]
[418985987,1774712352400,-500.0,0.00012618,2]
[418985988,1774712352424,-544.84260028,0.00012618,2]
[418985989,1774712352453,-768.25720079,0.00012618,2]
[418985990,1774712352476,-500.0,0.00012618,2]
[418985991,1774712352506,-768.25720079,0.00012618,2]
[418985992,1774712352529,-429.30919449,0.00012618,2]
[418985993,1774712352559,-768.25720079,0.00012618,2]
[418985994,1774712352590,-768.25720079,0.00012618,2]
[418985995,1774712352621,-768.25720079,0.00012618,2]
[418985996,1774712352650,-768.25720079,0.00012618,2]
[418985997,1774712352680,-768.25720079,0.00012618,2]
[418985998,1774712352709,-768.25720079,0.00012618,2]
[418985999,1774712352738,-768.25720079,0.00012618,2]
[418986000,1774712352769,-768.25720079,0.00012618,2]
[418986001,1774712352797,-768.25720079,0.00012618,2]
[418986002,1774712352827,-768.25720079,0.00012618,2]
[418986003,1774712352858,-768.25720079,0.00012618,2]
[418986004,1774712352887,-768.25720079,0.00012618,2]
[418986005,1774712352915,-768.25720079,0.00012618,2]
[418986006,1774712352942,-768.25720079,0.00012618,2]
[418986007,1774712352971,-768.25720079,0.00012618,2]
[418986008,1774712353000,-768.25720079,0.00012618,2]
[418986009,1774712353030,-768.25720079,0.00012618,2]
[418986010,1774712353062,-768.25720079,0.00012618,2]
[418986011,1774712353095,-768.25720079,0.00012618,2]
[418986012,1774712353125,-768.25720079,0.00012618,2]
[418986013,1774712353156,-768.25720079,0.00012618,2]
[418986014,1774712353186,-768.25720079,0.00012618,2]
[418986015,1774712353219,-768.25720079,0.00012618,2]
[418986016,1774712353249,-768.25720079,0.00012618,2]
[418986017,1774712353279,-768.25720079,0.00012618,2]
[418986018,1774712353309,-768.25720079,0.00012618,2]
[418986019,1774712353339,-768.25720079,0.00012618,2]
[418986020,1774712353371,-768.25720079,0.00012618,2]
[418986021,1774712353404,-768.25720079,0.00012618,2]
[418986022,1774712353435,-768.25720079,0.00012618,2]
[418986023,1774712353464,-757.91527693,0.00012618,2]
[418986024,1774712353494,-757.91527693,0.00012618,2]
[418986025,1774712353523,-757.91527693,0.00012618,2]
[418986026,1774712353552,-757.91527693,0.00012618,2]
[418986027,1774712353582,-757.91527693,0.00012618,2]
[418986028,1774712353613,-757.91527693,0.00012618,2]
[418986029,1774712353644,-757.91527693,0.00012618,2]
[418986030,1774712353677,-757.91527693,0.00012618,2]
[418986031,1774712353708,-757.91527693,0.00012618,2]
[418986032,1774712353739,-757.91527693,0.00012618,2]
[418986033,1774712353770,-757.91527693,0.00012618,2]
[418986034,1774712353801,-757.91527693,0.00012618,2]
[418986035,1774712353831,-757.91527693,0.00012618,2]
[418986036,1774712353862,-757.91527693,0.00012618,2]
[418986037,1774712353893,-757.91527693,0.00012618,2]
[418986038,1774712353925,-757.91527693,0.00012618,2]
[418986039,1774712353955,-757.91527693,0.00012618,2]
[418986040,1774712353987,-757.91527693,0.00012618,2]
[418986041,1774712354018,-757.91527693,0.00012618,2]
[418986042,1774712354047,-757.91527693,0.00012618,2]
[418986043,1774712354077,-757.91527693,0.00012618,2]
[418986044,1774712354106,-757.91527693,0.00012618,2]
[418986045,1774712354135,-757.91527693,0.00012618,2]
[418986046,1774712354165,-757.91527693,0.00012618,2]
[418986047,1774712354195,-757.91527693,0.00012618,2]
[418986048,1774712354224,-757.91527693,0.00012618,2]
[418986049,1774712354252,-773.28605378,0.00012618,2]
[418986050,1774712354280,-773.28605378,0.00012618,2]
[418986051,1774712354309,-773.28605378,0.00012618,2]
[418986052,1774712354338,-773.28605378,0.00012618,2]
[418986053,1774712354367,-773.28605378,0.00012618,2]
[418986054,1774712354396,-773.28605378,0.00012618,2]
[418986055,1774712354426,-773.28605378,0.00012618,2]
[418986056,1774712354457,-773.28605378,0.00012618,2]
[418986057,1774712354487,-773.28605378,0.00012618,2]
[418986058,1774712354516,-773.28605378,0.00012618,2]
[418986059,1774712354545,-773.28605378,0.00012618,2]
[418986060,1774712354573,-773.28605378,0.00012618,2]
[418986061,1774712354602,-773.28605378,0.00012618,2]
[418986062,1774712354633,-773.28605378,0.00012618,2]
[418986063,1774712354663,-773.28605378,0.00012618,2]
[418986064,1774712354693,-773.28605378,0.00012618,2]
[418986065,1774712354724,-773.28605378,0.00012618,2]
[418986066,1774712354754,-773.28605378,0.00012618,2]
[418986067,1774712354786,-773.28605378,0.00012618,2]
[418986068,1774712354812,-500.0,0.00012619,2]
[418986069,1774712354838,-500.0,0.00012619,2]
[418986070,1774712354865,-408.53390722,0.00012619,2]
[418986071,1774712354888,-359.21289582,0.00012619,2]
[418986072,1774712354911,-500.0,0.00012619,2]
[418986073,1774712354935,-500.0,0.00012619,2]
[418986074,1774712354958,-500.0,0.00012619,2]
[418986075,1774712354980,-500.0,0.00012619,2]
[418986076,1774712355003,-233.30719177,0.00012619,2]
[418986077,1774712355028,-1500000.0,0.0001262,2]
[418986078,1774712355050,-501.58195524,0.00012673,2]
[418986079,1774712355074,-500.0,0.00012673,2]
[418986080,1774712355221,-500.0,0.00012673,2]
[418986081,1774712355247,-1400.0,0.00012705,2]
[418986082,1774712355269,-10132.4848,0.00012714,2]
[418986083,1774712355291,-33003.204,0.00012731,2]
[418986084,1774712355313,-2500.0,0.00012731,2]
[418986085,1774712355336,-90672.8719107,0.00012814,2]
[418986086,1774712355360,-814.375195,0.00012814,2]
[418986087,1774712355386,-5000.0,0.00012814,2]
[418986088,1774712355410,-250.0,0.00012814,2]
[418986089,1774712355434,-250.0,0.00012814,2]
[418986090,1774712355458,-2503.47935232,0.0001282,2]
[418986091,1774712355483,-386227.12261537,0.00012832,2]
[418986092,1774712407047,240.48,0.00025821,120]
[418986093,1774712412399,9370.01,0.00011386,2]
[418986094,1774712412457,5094.14,0.00011386,2]
[418986095,1774712430872,-445.49,0.0001174,2]
[418986096,1774712430894,-288.0,0.0001174,2]
[418986097,1774712430917,-250.0,0.00012129,2]
[418986098,1774712430938,-250.0,0.00012432,2]
[418986099,1774712430963,-1200.0,0.00012519,2]
[418986100,1774712430985,-9670.6861,0.0001252,2]
[418986101,1774712431007,-2500.0,0.0001252,2]
[418986102,1774712431030,-1067.17461763,0.00012618,2]
[418986103,1774712431051,-500.0,0.00012673,2]
[418986104,1774712431075,-1745.84611663,0.00012832,2]
[418986105,1774712431097,-204.0,0.00012844,2]
[418986106,1774712431119,-500.0,0.00012873,2]
[418986107,1774712431141,-502.67280258,0.00012873,2]
[418986108,1774712431164,-1600.0,0.00012878,2]
[418986109,1774712431187,-457.9759,0.00012904,2]
[418986110,1774712431209,-774.0,0.0001291,2]
[418986111,1774712431232,-420.0,0.0001291,2]
[418986112,1774712431255,-250.0,0.00012914,2]
[418986113,1774712431277,-200.0,0.00012934,2]
[418986114,1774712431301,-500.0,0.00012934,2]
[418986115,1774712431324,-500.0,0.00012934,2]
[418986116,1774712431348,-500.0,0.00012934,2]
[418986117,1774712431374,-500.0,0.00012934,2]
[418986118,1774712431399,-500.0,0.00012934,2]
[418986119,1774712431423,-500.0,0.00012934,2]
[418986120,1774712431449,-500.0,0.00012934,2]
[418986121,1774712431473,-500.0,0.00012934,2]
[418986122,1774712431651,-500.0,0.00012934,2]
[418986123,1774712431675,-151.0,0.00012934,2]
[418986124,1774712431699,-151.0,0.00012934,2]
[418986125,1774712431723,-151.0,0.00012934,2]
[418986126,1774712431747,-151.0,0.00012934,2]
[418986127,1774712431770,-151.0,0.00012934,2]
[418986128,1774712431793,-500.0,0.00012934,2]
[418986129,1774712431816,-151.0,0.00012934,2]
[418986130,1774712431840,-151.0,0.00012934,2]
[418986131,1774712431863,-151.0,0.00012934,2]
[418986132,1774712431888,-151.0,0.00012934,2]
[418986133,1774712431913,-151.0,0.00012934,2]
[418986134,1774712431934,-151.0,0.00012934,2]
[418986135,1774712431957,-151.0,0.00012934,2]
[418986136,1774712431980,-151.0,0.00012934,2]
[418986137,1774712432004,-151.0,0.00012934,2]
[418986138,1774712432027,-151.0,0.00012934,2]
[418986139,1774712432049,-500.0,0.00012934,2]
[418986140,1774712432072,-151.0,0.00012934,2]
[418986141,1774712432095,-151.0,0.00012934,2]
[418986142,1774712432119,-151.0,0.00012934,2]
[418986143,1774712432141,-151.0,0.00012934,2]
[418986144,1774712432164,-151.0,0.00012934,2]
[418986145,1774712432191,-151.0,0.00012934,2]
[418986146,1774712432214,-151.0,0.00012934,2]
[418986147,1774712432237,-151.0,0.00012934,2]
[418986148,1774712432261,-151.0,0.00012934,2]
[418986149,1774712432284,-151.0,0.00012934,2]
[418986150,1774712432307,-151.0,0.00012934,2]
[418986151,1774712432330,-1386.78395259,0.00012934,2]
[418986152,1774712432353,-151.0,0.00012934,2]
[418986153,1774712432376,-151.0,0.00012934,2]
[418986154,1774712432400,-151.0,0.00012934,2]
[418986155,1774712432426,-151.0,0.00012934,2]
[418986156,1774712432450,-151.0,0.00012934,2]
[418986157,1774712432472,-508.04893,0.00012942,30]
[418986158,1774712432495,-508.04893,0.00012947,30]
[418986159,1774712432517,-500.14866203,0.00012973,2]
[418986160,1774712432539,-508.04893,0.00012973,30]
[418986161,1774712432562,-250.0,0.00013,2]
[418986162,1774712432584,-508.04893,0.00013,30]
[418986163,1774712432606,-150.0,0.00013,2]
[418986164,1774712432628,-310.3,0.00013009,2]
[418986165,1774712432652,-2010.0,0.00013099,2]
[418986166,1774712432677,-860.0,0.00013105,2]
[418986167,1774712432700,-605.19,0.0001318,2]
[418986168,1774712432725,-629.23,0.0001339,2]
[418986169,1774712432749,-1670.0,0.00013445,2]
[418986170,1774712432772,-200.0,0.00013482,2]
[418986171,1774712432795,-1438.09495884,0.00013482,2]
[418986172,1774712432819,-1640.24,0.00013484,2]
[418986173,1774712432842,-255.0,0.0001353,2]
[418986174,1774712432866,-2164.32,0.00013657,2]
[418986175,1774712432888,-163.8,0.00013666,2]
[418986176,1774712432910,-500.0,0.00013698,2]
[418986177,1774712432932,-500.0,0.00013698,2]
[418986178,1774712432954,-500.0,0.00013698,2]
[418986179,1774712432977,-500.0,0.00013698,2]
[418986180,1774712432998,-500.0,0.00013698,2]
[418986181,1774712433020,-171.67689472,0.00013698,2]
[418986182,1774712433044,-500.0,0.00013698,2]
[418986183,1774712433066,-500.0,0.00013698,2]
[418986184,1774712433089,-500.0,0.00013698,2]
[418986185,1774712433111,-500.0,0.00013698,2]
[418986186,1774712433134,-500.0,0.00013698,2]
[418986187,1774712433157,-500.0,0.00013698,2]
[418986188,1774712433180,-500.0,0.00013698,2]
[418986189,1774712433203,-500.0,0.00013698,2]
[418986190,1774712433225,-500.0,0.00013698,2]
[418986191,1774712433248,-500.0,0.00013698,2]
[418986192,1774712433270,-500.0,0.00013698,2]
[418986193,1774712433292,-500.0,0.00013698,2]
[418986194,1774712433316,-500.0,0.00013698,2]
[418986195,1774712433340,-500.0,0.00013698,2]
[418986196,1774712433366,-500.0,0.00013698,2]
[418986197,1774712433389,-500.0,0.00013698,2]
[418986198,1774712433416,-500.0,0.00013698,2]
[418986199,1774712433439,-500.0,0.00013698,2]
[418986200,1774712433464,-500.0,0.00013698,2]
[418986201,1774712433489,-500.0,0.00013698,2]
[418986202,1774712433513,-502.37596608,0.00013698,2]
[418986203,1774712433537,-500.0,0.00013698,2]
[418986204,1774712433561,-500.0,0.00013698,2]
[418986205,1774712433584,-500.0,0.00013698,2]
[418986206,1774712433612,-500.0,0.00013698,2]
[418986207,1774712433635,-500.0,0.00013698,2]
[418986208,1774712433661,-500.0,0.00013698,2]
[418986209,1774712433685,-500.0,0.00013698,2]
[418986210,1774712433709,-500.0,0.00013698,2]
[418986211,1774712433735,-500.0,0.00013698,2]
[418986212,1774712433759,-500.0,0.00013698,2]
[418986213,1774712433782,-500.0,0.00013698,2]
[418986214,1774712433806,-500.0,0.00013698,2]
[418986215,1774712433829,-500.0,0.00013698,2]
[418986216,1774712433855,-500.0,0.00013698,2]
[418986217,1774712433877,-500.0,0.00013698,2]
[418986218,1774712433899,-500.0,0.00013698,2]
[418986219,1774712433920,-500.0,0.00013698,2]
[418986220,1774712433943,-500.0,0.00013698,2]
[418986221,1774712433965,-504.25077449,0.00013698,2]
[418986222,1774712433990,-413.34674053,0.00013698,2]
[418986223,1774712434012,-500.0,0.00013698,2]
[418986224,1774712434034,-500.0,0.00013698,2]
[418986225,1774712434056,-500.0,0.00013698,2]
[418986226,1774712434078,-517.37860543,0.00013698,2]
[418986227,1774712434100,-500.0,0.00013698,2]
[418986228,1774712434122,-500.0,0.00013698,2]
[418986229,1774712434143,-500.0,0.00013698,2]
[418986230,1774712434165,-500.0,0.00013698,2]
[418986231,1774712434301,-184.24309734,0.00013698,2]
[418986232,1774712434325,-150.0,0.00013699,2]
[418986233,1774712434348,-443.61,0.00013699,2]
[418986234,1774712434370,-200.0,0.00013699,2]
[418986235,1774712434392,-785.52,0.00013699,2]
[418986236,1774712434416,-500.81672964,0.00013699,2]
[418986237,1774712434439,-500.0,0.00013699,2]
[418986238,1774712434462,-500.66749172,0.00013699,2]
[418986239,1774712434484,-19999.99,0.00013699,2]
[418986240,1774712434505,-8614.67,0.00013699,2]
[418986241,1774712434527,-4149.99,0.00013699,2]
[418986242,1774712434548,-637.89,0.000137,2]
[418986243,1774712434570,-2660.66,0.000137,2]
[418986244,1774712434593,-500.0,0.000137,2]
[418986245,1774712434615,-500.0,0.000137,2]
[418986246,1774712434637,-500.0,0.000137,2]
[418986247,1774712434658,-500.0,0.000137,2]
[418986248,1774712434681,-500.0,0.000137,2]
[418986249,1774712434703,-500.0,0.000137,2]
[418986250,1774712434725,-500.0,0.000137,2]
[418986251,1774712434747,-500.0,0.000137,2]
[418986252,1774712434769,-500.52088514,0.000137,2]
[418986253,1774712434792,-500.0,0.000137,2]
[418986254,1774712434814,-500.0,0.000137,2]
[418986255,1774712434838,-548.08973454,0.000137,2]
[418986256,1774712434862,-500.0,0.000137,2]
[418986257,1774712434888,-1680.0,0.00013771,2]
[418986258,1774712434912,-30568.4331171,0.00013778,2]
[418986259,1774712434938,-17570.18900282,0.0001393,2]
[418986260,1774712434960,-150.0,0.00013973,2]
[418986261,1774712434984,-200.0,0.0001403,2]
[418986262,1774712435008,-1491.30447232,0.0001403,2]
[418986263,1774712435031,-171.48716502,0.00014043,2]
[418986264,1774712435052,-500.0,0.00014043,2]
[418986265,1774712435075,-500.0,0.00014151,2]
[418986266,1774712435099,-278.0,0.00014176,2]
[418986267,1774712435122,-150.0,0.00014247,2]
[418986268,1774712435146,-500.0,0.00014248,2]
[418986269,1774712435171,-781.0056123,0.00014248,2]
[418986270,1774712435195,-1000.0,0.00014248,2]
[418986271,1774712435224,-1000.0,0.00014248,2]
[418986272,1774712435250,-196.7831,0.000143,2]
[418986273,1774712435274,-278.61157668,0.00014304,5]
[418986274,1774712435299,-1600.0,0.00014309,2]
[418986275,1774712435324,-443.61,0.00014384,2]
[418986276,1774712435349,-223.026189,0.00014493,7]
[418986277,1774712435374,-160.0,0.00014493,7]
[418986278,1774712435399,-160.0,0.00014493,7]
[418986279,1774712435424,-188.309544,0.00014493,7]
[418986280,1774712435450,-160.0,0.00014493,7]
[418986281,1774712435473,-500.0,0.00014504,2]
[418986282,1774712435498,-500.0,0.00014504,2]
[418986283,1774712435521,-500.0,0.00014504,2]
[418986284,1774712435550,-201.41272504,0.00014578,2]
[418986285,1774712435573,-624.4120397,0.00014578,2]
[418986286,1774712435597,-7308.18220394,0.00014696,2]
[418986287,1774712435621,-17570.18900273,0.00014716,2]
[418986288,1774712435644,-433.0,0.00014724,2]
[418986289,1774712435668,-500.0,0.00014767,2]
[418986290,1774712435690,-272.38298681,0.00014767,2]
[418986291,1774712435712,-150.70207934,0.00014767,2]
[418986292,1774712435736,-90672.8719107,0.00014768,2]
[418986293,1774712435759,-500.0,0.00014773,2]
[418986294,1774712435782,-188.97131412,0.00014773,2]
[418986295,1774712435804,-640.4578624,0.00014773,2]
[418986296,1774712435829,-500.0,0.00014787,2]
[418986297,1774712435856,-814.375195,0.00014788,2]
[418986298,1774712435882,-304914.43715105,0.00014788,2]
[418986299,1774712531515,-3530.053,0.0001209,2]
[418986300,1774712531579,-203.596,0.0001209,2]
[418986301,1774712558588,2000.0,0.00011296,2]
[418986302,1774712563946,-150.0,0.00012335,2]
[418986303,1774712566950,-572.32706437,0.00012336,2]
[418986304,1774712569837,-10000.01,0.00012336,2]
[418986305,1774712793857,-185.34,0.00011296,2]
[418986306,1774712793919,-250.0,0.00011811,2]
[418986307,1774712793982,-250.0,0.00012125,2]
[418986308,1774712794038,-411.23351686,0.00012326,2]
[418986309,1774712794098,-857.48118716,0.00012326,2]
[418986310,1774712794413,-6091.90059196,0.00012326,2]
[418986311,1774712799858,-612.05552208,0.00012326,2]
[418986312,1774712799924,-1200.0,0.00012334,2]
[418986313,1774712799985,-150.0,0.00012334,2]
[418986314,1774712800049,-1001.76089238,0.00012334,2]
[418986315,1774712800110,-500.0,0.00012335,2]
[418986316,1774712800176,-285.97373505,0.00012335,2]
[418986317,1774712800240,-500.0,0.00012335,2]
[418986318,1774712800303,-213.31503423,0.00012335,2]
[418986319,1774712800363,-500.0,0.00012335,2]
[418986320,1774712800927,-73.79963252,0.00012335,2]
[418986321,1774712820711,5000.01,9.496e-05,2]
[418986322,1774712820735,4999.99,9.496e-05,2]
[418986324,1774712838626,0.02,9.496e-05,2]
[418986325,1774712838648,3276.43,9.496e-05,2]
[418986326,1774712886687,212.72,9.132e-05,2]
[418986327,1774712897676,-355.49,9.975e-05,2]
[418986328,1774712897742,-600.0,0.00010885,2]
[418986329,1774712981312,-624.91,0.00010915,2]
[418986330,1774712981335,-166.66,0.00011635,2]
[418986331,1774712981359,-300.0,0.000118,4]
[418986332,1774712981381,-700.0,0.000119,4]
[418986333,1774712981406,-584.55025158,0.00011974,2]
[418986334,1774712981429,-2512.33133398,0.00012006,2]
[418986335,1774712981450,-166.66,0.00012019,2]
[418986336,1774712981473,-630.0,0.00012072,2]
[418986337,1774712981495,-2661.3,0.00012109,2]
[418986338,1774712981517,-861.7732,0.00012236,2]
[418986339,1774712981538,-791.81521444,0.00012303,2]
[418986340,1774712982498,-1387.61613613,0.00012303,2]
[418986341,1774712982519,-2179.43135057,0.00012303,2]
[418986342,1774712982539,-300.0,0.00012325,2]
[418986343,1774712982562,-6132.9525133,0.00012326,2]
[418986344,1774712982929,-7923.19868892,0.00012326,2]
[418986345,1774712982951,-269.77786503,0.00012329,2]
[418986346,1774712982974,-151.0,0.00012329,2]
[418986347,1774712982998,-151.0,0.00012329,2]
[418986348,1774712983024,-151.0,0.00012329,2]
[418986349,1774712983047,-151.0,0.00012329,2]
[418986350,1774712983069,-151.0,0.00012329,2]
[418986351,1774712983091,-151.0,0.00012329,2]
[418986352,1774712983114,-151.0,0.00012329,2]
[418986353,1774712983137,-151.0,0.00012329,2]
[418986354,1774712983159,-151.0,0.00012329,2]
[418986355,1774712983180,-151.0,0.00012329,2]
[418986356,1774712983203,-151.0,0.00012329,2]
[418986357,1774712983225,-146.02344605,0.00012331,2]
[418986358,1774712983422,-103.97655395,0.00012331,2]
[418986359,1774712983445,-150.0,0.00012334,2]
[418986360,1774712983468,-1000.0,0.00012334,2]
[418986361,1774712983490,-208.9606564,0.00012335,2]
[418986362,1774712983519,-500.0,0.00012335,2]
[418986363,1774712983549,-500.0,0.00012335,2]
[418986364,1774712983571,-158.81213272,0.00012335,2]
[418986365,1774712983600,-500.0,0.00012335,2]
[418986366,1774712983631,-500.0,0.00012335,2]
[418986367,1774712983659,-500.0,0.00012335,2]
[418986368,1774712983688,-500.0,0.00012335,2]
[418986369,1774712983717,-500.0,0.00012335,2]
[418986370,1774712983747,-500.0,0.00012335,2]
[418986371,1774712983778,-500.0,0.00012335,2]
[418986372,1774712983809,-500.0,0.00012335,2]
[418986373,1774712983838,-500.0,0.00012335,2]
[418986374,1774712983867,-500.0,0.00012335,2]
[418986375,1774712983896,-500.0,0.00012335,2]
[418986376,1774712983925,-500.0,0.00012335,2]
[418986377,1774712983953,-500.0,0.00012335,2]
[418986378,1774712983983,-500.0,0.00012335,2]
[418986379,1774712984013,-378.25065693,0.00012335,2]
[418986380,1774712984052,-121.74934307,0.00012335,2]
[418986381,1774712984081,-500.0,0.00012335,2]
[418986382,1774712984109,-500.0,0.00012335,2]
[418986383,1774712984136,-500.0,0.00012335,2]
[418986384,1774712984164,-500.0,0.00012335,2]
[418986385,1774712984192,-500.0,0.00012335,2]
[418986386,1774712984222,-332.03309843,0.00012335,2]
[418986387,1774712984251,-500.0,0.00012335,2]
[418986388,1774712984280,-500.0,0.00012335,2]
[418986389,1774712984309,-500.0,0.00012335,2]
[418986390,1774712984339,-500.0,0.00012335,2]
[418986391,1774712984369,-500.0,0.00012335,2]
[418986392,1774712984398,-500.0,0.00012335,2]
[418986393,1774712984426,-500.0,0.00012335,2]
[418986394,1774712984456,-500.0,0.00012335,2]
[418986395,1774712984485,-500.0,0.00012335,2]
[418986396,1774712984638,-500.0,0.00012335,2]
[418986397,1774712984669,-500.0,0.00012335,2]
[418986398,1774712984697,-500.0,0.00012335,2]
[418986399,1774712984724,-500.0,0.00012335,2]
[418986400,1774712984752,-500.0,0.00012335,2]
[418986401,1774712984780,-46.2175585,0.00012335,2]
[418986402,1774712984812,-453.7824415,0.00012335,2]
[418986403,1774712984840,-500.0,0.00012335,2]
[418986404,1774712984867,-500.0,0.00012335,2]
[418986405,1774712984895,-500.0,0.00012335,2]
[418986406,1774712984922,-500.0,0.00012335,2]
[418986407,1774712984952,-500.0,0.00012335,2]
[418986408,1774712984979,-169.63423393,0.00012335,2]
[418986409,1774712985005,-500.0,0.00012335,2]
[418986410,1774712985033,-500.0,0.00012335,2]
[418986411,1774712985061,-500.0,0.00012335,2]
[418986412,1774712985087,-500.0,0.00012335,2]
[418986413,1774712985114,-500.0,0.00012335,2]
[418986414,1774712985141,-500.0,0.00012335,2]
[418986415,1774712985168,-500.0,0.00012335,2]
[418986416,1774712985195,-500.0,0.00012335,2]
[418986417,1774712985217,-500.0,0.00012335,2]
[418986418,1774712985238,-500.0,0.00012335,2]
[418986419,1774712985259,-151.44902707,0.00012335,2]
[418986420,1774712985287,-500.0,0.00012335,2]
[418986421,1774712985315,-500.0,0.00012335,2]
[418986422,1774712985345,-645.77373142,0.00012335,2]
[418986423,1774712985374,-79.36056608,0.00012335,2]
[418986424,1774712985411,-420.63943392,0.00012335,2]
[418986425,1774712985439,-500.0,0.00012335,2]
[418986426,1774712985467,-500.0,0.00012335,2]
[418986427,1774712985495,-500.0,0.00012335,2]
[418986428,1774712985523,-500.0,0.00012335,2]
[418986429,1774712985550,-500.0,0.00012335,2]